[Event "EYCC Girls-U10 2019"]
[Site "Bratislava"]
[Date "2019.08.10"]
[Round "9.20"]
[White "Szarvas, Nora"]
[Black "Pavesi, Bianca"]
[Result "0-1"]
[ECO "D02"]
[WhiteElo "1240"]
[BlackElo "1537"]
[Annotator "NA RC"]
[PlyCount "84"]
[EventDate "2019.08.02"]
[EventType "swiss"]
[EventCountry "SVK"]
[SourceTitle "playchess.com"]
[Source "ChessBase"]
[SourceQuality "1"]
[TimeControl "40/5400+30:1800+30"]

1. Nf3 {[%emt 0:00:00]} d5 {[%emt 0:00:19]} 2. d4 {[%emt 0:00:10]} Nf6 {[%emt 0:00:56]} 3. Bf4 {[%emt 0:00:44]} e6 {[%emt 0:04:39]} 4. e3 {[%emt 0:01:00]} c5 {[%emt 0:04:32]} 5. Be2 {[%emt 0:01:35]} Nc6 {[%emt 0:01:14]} 6. c4 {[%emt 0:03:31]} Be7 {[%emt 0:05:46]} 7. O-O {[%emt 0:00:40]} O-O {[%emt 0:00:49]} 8. Nc3 {[%emt 0:02:56]} b6 {[%emt 0:05:56]} 9. a3 {[%emt 0:02:20]} Bb7 {[%emt 0:02:54]} 10. Qd3 {[%emt 0:01:09]} cxd4 {[%emt 0:16:27]} 11. exd4 {[%emt 0:03:07]} Rc8 {[%emt 0:05:27]} 12. cxd5 {[%emt 0:03:05]} exd5 {[%emt 0:02:34]} 13. Rac1 {[%emt 0:00:59]} Na5 {[%emt 0:04:29]} 14. Nd2 {[%emt 0:02:41]} Nc4 {[%emt 0:03:31]} 15. Qc2 {[%emt 0:05:23]} a6 {[%emt 0:06:40]} 16. Qb3 {[%emt 0:03:00]} b5 {[%emt 0:01:57]} 17. Rfd1 {[%emt 0:02:51]} Qd7 {[%emt 0:03:56]} 18. a4 {[%emt 0:04:08]} Nxd2 {[%emt 0:05:04]} 19. Bxd2 {[%emt 0:00:44]} b4 {[%emt 0:01:21]} 20. Na2 {[%emt 0:00:24]} a5 {[%emt 0:00:41]} 21. h3 {[%emt 0:03:19]} h5 {[%emt 0:01:59]} 22. Bg5 {[%emt 0:01:35]} g6 {[%emt 0:01:06]} 23. Qf3 {[%emt 0:03:38]} Ne4 {[%emt 0:01:23]} 24. Bxe7 {[%emt 0:00:36]} Qxe7 {[%emt 0:00:20]} 25. Bd3 {[%emt 0:01:52]} Qd6 {[%emt 0:03:33]} 26. Bxe4 {[%emt 0:02:40]} dxe4 {[%emt 0:00:18]} 27. Qe3 {[%emt 0:00:32]} Qe6 {[%emt 0:01:18]} 28. Rxc8 {[%emt 0:02:31]} Rxc8 {[%emt 0:00:13]} 29. Nc1 {[%emt 0:00:50]} Rc2 {[%emt 0:01:20]} 30. Qb3 {[%emt 0:04:45]} Rxc1 {[%emt 0:01:12]} 31. Qxe6 {[%emt 0:01:37]} Rxd1+ {[%emt 0:00:06]} 32. Kh2 {[%emt 0:00:22]} fxe6 {[%emt 0:00:11]} 33. b3 {[%emt 0:00:16]} Rd3 {[%emt 0:00:24]} 34. f3 {[%emt 0:00:21]} Rxb3 {[%emt 0:00:17]} 35. fxe4 {[%emt 0:00:18]} Bxe4 {[%emt 0:00:49]} 36. d5 {[%emt 0:00:17]} Rd3 {[%emt 0:02:17]} 37. d6 {[%emt 0:00:10]} b3 {[%emt 0:00:52]} 38. d7 {[%emt 0:00:06]} b2 {[%emt 0:00:40]} 39. d8=N {[%emt 0:00:28]} b1=Q {[%emt 0:01:36]} 40. Nxe6 {[%emt 0:00:00]} Qf1 {[%emt 0:00:00]} 41. Nf4 {[%emt 0:00:30]} Qxf4+ {[%emt 0:01:33]} 42. Kg1 {[%emt 0:00:04]} Rd1# 0-1

[Event "EYCC Girls-U10 2019"]
[Site "Bratislava"]
[Date "2019.08.10"]
[Round "9.21"]
[White "Novomeska, Karin"]
[Black "Bagas, Ana"]
[Result "1/2-1/2"]
[ECO "A52"]
[WhiteElo "1269"]
[BlackElo "1442"]
[Annotator "NA RC"]
[PlyCount "33"]
[EventDate "2019.08.02"]
[EventType "swiss"]
[EventCountry "SVK"]
[SourceTitle "playchess.com"]
[Source "ChessBase"]
[SourceQuality "1"]
[TimeControl "40/5400+30:1800+30"]

1. d4 {[%emt 0:00:00]} Nf6 {[%emt 0:00:00]} 2. c4 {[%emt 0:00:00]} e5 {[%emt 0:00:00]} 3. dxe5 {[%emt 0:01:13]} Ng4 {[%emt 0:00:04]} 4. Nf3 {[%emt 0:00:28]} Bc5 {[%emt 0:00:08]} 5. e3 {[%emt 0:01:49]} Nc6 6. Nc3 {[%emt 0:17:58]} O-O {[%emt 0:03:33]} 7. Be2 {[%emt 0:03:39]} Ngxe5 {[%emt 0:02:19]} 8. O-O {[%emt 0:02:46]} Nxf3+ 9. Bxf3 {[%emt 0:00:55]} Ne5 {[%emt 0:02:08]} 10. Be4 {[%emt 0:07:12]} d6 {[%emt 0:10:37]} 11. b3 {[%emt 0:11:59]} f5 {[%emt 0:09:06]} 12. Bf3 {[%emt 0:10:03]} Nxf3+ {[%emt 0:05:44]} 13. Qxf3 {[%emt 0:03:40]} Rb8 {[%emt 0:04:40]} 14. Bb2 {[%emt 0:05:45]} Bd7 {[%emt 0:02:49]} 15. Nd5 {[%emt 0:12:04]} Bc6 16. Qg3 {[%emt 0:01:26]} Rf7 {[%emt 0:06:35]} 17. Nf4 {[%emt 0:01:25]} 1/2-1/2

[Event "EYCC Girls-U10 2019"]
[Site "Bratislava"]
[Date "2019.08.10"]
[Round "9.22"]
[White "Chevillon, Manon"]
[Black "Artissi, Sabina"]
[Result "0-1"]
[ECO "B43"]
[WhiteElo "1232"]
[BlackElo "1419"]
[Annotator "NA RC"]
[PlyCount "92"]
[EventDate "2019.08.02"]
[EventType "swiss"]
[EventCountry "SVK"]
[SourceTitle "playchess.com"]
[Source "ChessBase"]
[SourceQuality "1"]
[TimeControl "40/5400+30:1800+30"]

1. e4 c5 2. Nf3 e6 3. d4 cxd4 4. Nxd4 a6 5. Nc3 b5 6. Bd3 Bb7 7. O-O Nc6 8. Nxc6 Bxc6 9. a3 Nf6 10. Qe2 Be7 11. Bd2 O-O 12. Kh1 Qc7 13. f4 d5 14. Rae1 Rfd8 15. exd5 Nxd5 16. Nxd5 Bxd5 17. Bc3 Rac8 18. Qg4 Bf8 19. f5 Re8 20. Qh5 e5 21. f6 g6 22. Qg5 Bd6 23. Bb4 Bxb4 24. axb4 Qd6 25. Qh6 Qf8 26. Qh3 e4 27. Be2 Rxc2 28. Qd7 Be6 29. Qb7 Bc8 30. Qd5 Rxb2 31. Qg5 Rxb4 32. Rf4 Rb2 33. Bd1 e3 34. Be2 Qd6 35. Qh6 Qf8 36. Qg5 Rd8 37. h3 Bb7 38. Rh4 Re8 39. Rh6 Rd8 40. h4 Rxe2 41. Rxe2 Rd1+ 42. Kh2 Qd6+ 43. Kh3 Bc8+ 44. g4 Rh1+ 45. Kg2 Bb7+ 46. Qd5 Bxd5# 0-1

[Event "EYCC Girls-U10 2019"]
[Site "Bratislava"]
[Date "2019.08.10"]
[Round "9.23"]
[White "Kuznecova, Marija"]
[Black "Briem, Gudrun Fanney"]
[Result "1-0"]
[ECO "D00"]
[WhiteElo "1375"]
[BlackElo "1199"]
[Annotator "NA RC"]
[PlyCount "35"]
[EventDate "2019.08.02"]
[EventType "swiss"]
[EventCountry "SVK"]
[SourceTitle "playchess.com"]
[Source "ChessBase"]
[SourceQuality "1"]
[TimeControl "40/5400+30:1800+30"]

1. d4 d5 {[%emt 0:00:00]} 2. Nc3 {[%emt 0:00:21]} Nf6 {[%emt 0:00:00]} 3. Bf4 {[%emt 0:00:40]} a6 {[%emt 0:00:00]} 4. e3 {[%emt 0:03:37]} Bf5 {[%emt 0:00:00]} 5. Bd3 {[%emt 0:00:35]} Bg6 {[%emt 0:01:05]} 6. Nf3 {[%emt 0:01:02]} e6 {[%emt 0:00:48]} 7. a3 {[%emt 0:02:00]} c5 {[%emt 0:00:31]} 8. Ne5 {[%emt 0:08:56]} cxd4 {[%emt 0:04:25]} 9. exd4 {[%emt 0:00:15]} Bd6 {[%emt 0:01:16]} 10. g4 {[%emt 0:04:20]} Bxd3 {[%emt 0:02:19]} 11. Qxd3 {[%emt 0:04:45]} Bxe5 {[%emt 0:01:09]} 12. dxe5 {[%emt 0:01:25]} Nxg4 {[%emt 0:02:27]} 13. Qg3 {[%emt 0:00:41]} g5 {[%emt 0:04:53]} 14. Qxg4 {[%emt 0:06:03]} gxf4 {[%emt 0:00:18]} 15. Qxf4 {[%emt 0:00:12]} d4 {[%emt 0:02:47]} 16. Ne4 {[%emt 0:01:14]} Nd7 {[%emt 0:01:48]} 17. Nd6+ {[%emt 0:00:07]} Ke7 {[%emt 0:03:49]} 18. Qxf7# 1-0

[Event "EYCC Girls-U10 2019"]
[Site "Bratislava"]
[Date "2019.08.10"]
[Round "9.24"]
[White "Trunz, Tamila"]
[Black "Frenkel, Avigail"]
[Result "0-1"]
[ECO "B24"]
[WhiteElo "1274"]
[BlackElo "1149"]
[Annotator "NA RC"]
[PlyCount "86"]
[EventDate "2019.08.02"]
[EventType "swiss"]
[EventCountry "SVK"]
[SourceTitle "playchess.com"]
[Source "ChessBase"]
[SourceQuality "1"]
[TimeControl "40/5400+30:1800+30"]

1. e4 {[%emt 0:00:00]} c5 {[%emt 0:00:00]} 2. Nc3 {[%emt 0:00:00]} Nc6 {[%emt 0:00:00]} 3. g3 {[%emt 0:00:00]} g6 {[%emt 0:00:00]} 4. Bg2 {[%emt 0:00:07]} Bg7 {[%emt 0:00:31]} 5. d3 {[%emt 0:00:24]} Nf6 {[%emt 0:01:02]} 6. h3 {[%emt 0:00:18]} d6 {[%emt 0:00:57]} 7. Be3 {[%emt 0:01:02]} Rb8 {[%emt 0:04:01]} 8. Qd2 {[%emt 0:00:53]} b5 {[%emt 0:04:02]} 9. Nge2 {[%emt 0:04:22]} b4 {[%emt 0:01:48]} 10. Nd1 {[%emt 0:01:01]} a5 {[%emt 0:04:17]} 11. O-O {[%emt 0:01:53]} a4 {[%emt 0:00:46]} 12. Bh6 {[%emt 0:02:22]} Rg8 {[%emt 0:06:57]} 13. Bxg7 {[%emt 0:00:51]} Rxg7 {[%emt 0:00:10]} 14. f4 {[%emt 0:01:13]} Nd4 {[%emt 0:04:47]} 15. Nxd4 {[%emt 0:03:41]} cxd4 {[%emt 0:00:05]} 16. e5 {[%emt 0:02:31]} dxe5 {[%emt 0:02:05]} 17. fxe5 {[%emt 0:00:40]} Nd7 {[%emt 0:03:53]} 18. Bc6 {[%emt 0:02:00]} Qc7 {[%emt 0:05:20]} 19. Bxd7+ {[%emt 0:03:03]} Bxd7 {[%emt 0:00:50]} 20. Qf4 {[%emt 0:02:53]} Bxh3 {[%emt 0:04:09]} 21. Rf2 {[%emt 0:00:41]} g5 {[%emt 0:05:57]} 22. Qxd4 {[%emt 0:02:28]} Rg6 {[%emt 0:03:07]} 23. Ne3 {[%emt 0:04:14]} Rd8 {[%emt 0:03:53]} 24. Qe4 {[%emt 0:05:17]} Bd7 {[%emt 0:05:53]} 25. Re1 {[%emt 0:07:49]} Rh6 {[%emt 0:02:27]} 26. Nf5 {[%emt 0:03:09]} Bc6 {[%emt 0:02:34]} 27. Ng7+ {[%emt 0:03:27]} Kf8 {[%emt 0:01:46]} 28. Ne6+ {[%emt 0:06:21]} Rxe6 {[%emt 0:01:48]} 29. Qf5 {[%emt 0:03:54]} Ke8 {[%emt 0:01:53]} 30. Qxf7+ {[%emt 0:04:58]} Kd7 {[%emt 0:00:26]} 31. d4 {[%emt 0:02:22]} Rh6 {[%emt 0:02:58]} 32. d5 {[%emt 0:02:58]} Bb7 {[%emt 0:08:14]} 33. Rf6 {[%emt 0:09:40]} Rxf6 {[%emt 0:02:46]} 34. exf6 {[%emt 0:01:46]} Qxg3+ {[%emt 0:00:32]} 35. Kf1 {[%emt 0:00:50]} Ba6+ {[%emt 0:00:47]} 36. Re2 {[%emt 0:01:14]} Bxe2+ {[%emt 0:00:13]} 37. Kxe2 {[%emt 0:00:36]} Qe5+ {[%emt 0:00:29]} 38. Kd1 {[%emt 0:01:21]} Qxf6 {[%emt 0:00:23]} 39. Qxh7 {[%emt 0:00:44]} Qd4+ {[%emt 0:00:25]} 40. Kc1 {[%emt 0:00:00]} Qxd5 {[%emt 0:00:00]} 41. Qh3+ {[%emt 0:01:54]} Kc6 {[%emt 0:01:52]} 42. Qh6+ {[%emt 0:00:54]} Kc5 {[%emt 0:00:38]} 43. a3 {[%emt 0:01:07]} Qd1# {[%emt 0:00:13]} 0-1